bitfinex/quotes_BTCUSD_20240727
["timestamp","ask_amount","ask_price","bid_price","bid_amount"]
[1722115030123,0.01252428,68857.0,68849.0,0.232391]
[1722115030396,0.01252428,68857.0,68845.0,0.232402]
[1722115030674,0.01252428,68857.0,68837.0,0.2329]
[1722115030949,0.01252428,68857.0,68818.0,0.232496]
[1722115030950,0.22308399,68856.0,68841.0,0.116209]
[1722115031209,0.22308399,68856.0,68855.0,0.349086]
[1722115031210,0.1479542,68856.0,68855.0,0.349086]
[1722115031470,0.1479542,68856.0,68855.0,0.81383]
[1722115031703,0.1464,68856.0,68855.0,0.81383]
[1722115031947,0.01352428,68857.0,68856.0,0.580922]
[1722115032197,0.01252428,68857.0,68856.0,0.96355057]
[1722115032649,0.01352428,68857.0,68856.0,1.19591957]
[1722115032876,0.01352428,68857.0,68856.0,0.96355057]
[1722115033107,0.00588,68857.0,68856.0,1.39916918]
[1722115033553,0.00688,68857.0,68856.0,1.40016918]
[1722115034047,0.00688,68857.0,68856.0,1.24546918]
[1722115034730,0.17697133,68857.0,68856.0,0.580922]
[1722115034950,0.17697133,68857.0,68856.0,0.001]
[1722115035650,0.17547133,68857.0,68844.0,0.00661565]
[1722115035876,0.17547133,68857.0,68856.0,0.348553]
[1722115036105,0.17547133,68857.0,68856.0,0.827291]
[1722115036106,0.02817133,68857.0,68856.0,0.827291]
[1722115036563,0.02817133,68857.0,68856.0,0.813291]
[1722115036825,0.02817133,68857.0,68856.0,2.04961957]
[1722115037068,0.02817133,68857.0,68856.0,1.34961957]
[1722115037492,0.02817133,68857.0,68856.0,1.04566]
[1722115038019,0.02817133,68857.0,68856.0,1.19591957]
[1722115038664,0.02817133,68857.0,68856.0,1.20991957]
[1722115038861,0.02817133,68857.0,68856.0,1.36361957]
[1722115039075,0.02817133,68857.0,68856.0,1.34961957]
[1722115039292,0.02817133,68857.0,68856.0,1.20282931]
[1722115039488,0.02817133,68857.0,68856.0,1.21682931]
[1722115039930,0.02817133,68857.0,68856.0,0.97046031]
[1722115040148,0.02817133,68857.0,68856.0,0.82020074]
[1722115040355,0.02817133,68857.0,68856.0,1.21682931]
[1722115040793,0.02817133,68857.0,68856.0,0.98446031]
[1722115041013,0.02817133,68857.0,68856.0,0.60183174]
[1722115041232,0.02972553,68857.0,68856.0,0.362553]
[1722115041443,0.02972553,68857.0,68856.0,0.594922]
[1722115041644,0.02817133,68857.0,68856.0,0.580922]
[1722115041846,0.02817133,68857.0,68856.0,0.348553]
[1722115042073,0.02817133,68857.0,68856.0,0.362553]
[1722115042493,0.02817133,68857.0,68856.0,0.348553]
[1722115042748,0.02817133,68857.0,68856.0,0.362553]
[1722115043013,0.1473,68852.0,68818.0,0.08239939]
[1722115043239,0.0645,68838.0,68820.0,0.45077872]
[1722115043464,0.0645,68838.0,68819.0,0.2329]
[1722115043706,0.0645,68838.0,68837.0,0.116216]
[1722115043937,0.0645,68838.0,68837.0,0.813515]
[1722115044414,0.0645,68838.0,68837.0,0.581082]
[1722115044647,0.0645,68838.0,68837.0,0.116216]
[1722115044880,0.0645,68845.0,68844.0,0.348613]
[1722115045117,0.0645,68845.0,68841.0,0.116209]
[1722115045338,0.0645,68845.0,68839.0,0.116212]
[1722115045623,0.07512979,68842.0,68832.0,0.232448]
[1722115045843,0.0645,68855.0,68854.0,0.116187]
[1722115046058,0.0645,68855.0,68854.0,0.115187]
[1722115046276,0.0645,68855.0,68854.0,0.347562]
[1722115046728,0.08729536,68855.0,68854.0,0.579937]
[1722115046957,0.08729536,68855.0,68854.0,0.811312]
[1722115047217,0.0645,68855.0,68854.0,0.811312]
[1722115047441,0.0645,68855.0,68854.0,0.578937]
[1722115047908,0.0645,68855.0,68839.0,0.1537]
[1722115048140,0.0645,68855.0,68854.0,0.116187]
[1722115048331,0.0645,68855.0,68854.0,0.362562]
[1722115048755,0.0645,68855.0,68854.0,0.580937]
[1722115049846,0.0645,68855.0,68854.0,0.594937]
[1722115050257,0.0645,68855.0,68854.0,0.362562]
[1722115050637,0.1414,68855.0,68854.0,0.014]
[1722115050829,0.1414,68855.0,68816.0,0.000924]
[1722115050830,0.0656,68847.0,68816.0,0.45170272]
[1722115051049,0.0769,68838.0,68835.0,0.116219]
[1722115051261,0.0769,68838.0,68831.0,0.116225]
[1722115051466,0.0769,68838.0,68816.0,0.15795428]
[1722115051467,0.0769,68838.0,68837.0,0.116216]
[1722115051668,0.0656,68847.0,68846.0,0.348603]
[1722115052125,0.0656,68847.0,68846.0,0.116201]
[1722115052126,0.1425,68847.0,68846.0,0.116201]
[1722115052528,0.1425,68847.0,68835.0,0.014]
[1722115052753,0.1425,68847.0,68831.0,0.00668884]
[1722115052970,0.1425,68847.0,68846.0,0.130201]
[1722115053218,0.1425,68847.0,68846.0,0.014]
[1722115053440,0.1425,68847.0,68846.0,0.009]
[1722115054290,0.0015542,68846.0,68837.0,0.116216]
[1722115054491,0.07512979,68845.0,68835.0,0.012]
[1722115054942,0.07512979,68845.0,68829.0,0.232457]
[1722115054943,0.02279908,68844.0,68833.0,0.116222]
[1722115055101,0.02279908,68844.0,68830.0,0.232456]
[1722115055327,0.02279908,68844.0,68827.0,0.232466]
[1722115055328,0.07512979,68833.0,68827.0,0.116232]
[1722115055604,0.07512979,68833.0,68822.0,0.232482]
[1722115055846,0.02643077,68844.0,68825.0,0.116236]
[1722115056054,0.0641,68837.0,68833.0,0.012]
[1722115056585,0.0019994,68834.0,68833.0,0.012]
[1722115057247,0.0015542,68836.0,68833.0,0.011]
[1722115057430,0.0015542,68836.0,68816.0,0.233424]
[1722115057431,0.0015542,68836.0,68817.0,0.2325]
[1722115057627,0.0029994,68833.0,68816.0,0.000924]
[1722115057995,0.0029994,68833.0,68812.0,0.232514]
[1722115057996,0.0019994,68827.0,68812.0,0.232438]
[1722115058231,0.07512979,68831.0,68791.0,0.058258]
[1722115058232,0.07512979,68813.0,68791.0,0.058258]
[1722115058459,0.0641,68812.0,68792.0,0.00290677]
[1722115058660,0.0641,68812.0,68791.0,0.058258]
[1722115058661,0.0821,68811.0,68798.0,0.116281]
[1722115058895,0.07512979,68808.0,68797.0,0.116283]
[1722115059136,0.0019994,68803.0,68791.0,0.057258]
[1722115059339,0.07512979,68801.0,68791.0,0.057258]
[1722115059551,0.0019994,68799.0,68791.0,0.057258]
[1722115059764,0.0836542,68798.0,68791.0,0.057258]
[1722115060624,0.0641,68797.0,68791.0,0.057258]
[1722115060921,0.1462,68792.0,68791.0,0.057258]
[1722115061136,0.1462,68792.0,68780.0,0.008998]
[1722115061137,0.0019994,68789.0,68780.0,0.008998]
[1722115061582,0.0015542,68791.0,68781.0,0.057258]
[1722115061583,0.0641,68785.0,68781.0,0.057258]
[1722115061776,0.0019994,68781.0,68780.0,0.008998]
[1722115061998,0.0019994,68779.0,68764.0,0.008998]
[1722115062216,0.0019994,68773.0,68764.0,0.008998]
[1722115062424,0.1481994,68772.0,68764.0,0.008998]
[1722115063274,0.00518981,68778.0,68764.0,0.008998]
[1722115063275,0.1462,68770.0,68764.0,0.008998]
[1722115063496,0.00363587,68769.0,68764.0,0.008998]
[1722115063708,0.07712919,68765.0,68764.0,0.008998]
[1722115063921,0.0019994,68765.0,68764.0,0.008998]
[1722115064132,0.00563542,68765.0,68764.0,0.019996]
[1722115064348,0.00188416,68765.0,68764.0,0.008998]
[1722115064770,0.00188416,68765.0,68764.0,0.011998]
[1722115064978,0.02471299,68765.0,68764.0,0.011998]
[1722115065186,0.17454894,68765.0,68764.0,0.008998]
[1722115065389,0.15172011,68765.0,68764.0,0.008998]
[1722115066230,0.15272011,68765.0,68764.0,0.012998]
[1722115066856,0.1594873,68765.0,68764.0,0.012998]
[1722115067479,0.15585135,68765.0,68764.0,0.012998]
[1722115068103,0.15585135,68765.0,68760.0,0.008998]
[1722115068104,0.00188416,68761.0,68760.0,0.008998]
[1722115068405,0.2268509,68761.0,68760.0,0.008998]
[1722115068793,0.22496674,68761.0,68760.0,0.008998]
[1722115069021,0.22496674,68761.0,68751.0,0.002]
[1722115069022,0.0629,68757.0,68751.0,0.002]
[1722115069255,0.14208416,68752.0,68751.0,0.002]
[1722115069496,0.14572132,68752.0,68751.0,0.002]
[1722115069743,0.14572132,68752.0,68743.0,0.008998]
[1722115069972,0.14572132,68752.0,68722.0,0.008998]
[1722115069973,0.1349,68726.0,68722.0,0.008998]
[1722115070196,0.1349,68726.0,68725.0,0.008998]
[1722115070404,0.1349,68726.0,68722.0,0.008998]
[1722115070405,0.00188416,68723.0,68722.0,0.008998]
[1722115071044,0.1349,68726.0,68722.0,0.008998]
[1722115071045,0.07512979,68725.0,68722.0,0.008998]
[1722115071254,0.0629,68724.0,68722.0,0.008998]
[1722115071464,0.07918416,68723.0,68722.0,0.008998]
[1722115071887,0.08018416,68723.0,68722.0,0.009998]
[1722115072326,0.08018416,68723.0,68722.0,0.008998]
[1722115072327,0.07918416,68723.0,68722.0,0.008998]
[1722115072770,0.08018416,68723.0,68722.0,0.009998]
[1722115073021,0.10666455,68723.0,68722.0,0.009998]
[1722115073231,0.10666455,68723.0,68718.0,0.01]
[1722115073232,0.190002,68722.0,68718.0,0.01]
[1722115073451,0.19344036,68722.0,68718.0,0.01]
[1722115073902,0.19344036,68722.0,68721.0,0.826887]
[1722115073903,0.190002,68722.0,68721.0,0.826887]
[1722115074125,0.190002,68722.0,68721.0,1.37202784]
[1722115074328,0.190002,68722.0,68721.0,0.012]
[1722115074782,0.190002,68722.0,68721.0,0.361237]
[1722115074986,0.190002,68722.0,68721.0,0.012]
[1722115075817,0.191002,68722.0,68721.0,0.012]
[1722115076304,0.0514509,68722.0,68721.0,0.012]
[1722115076939,0.0514509,68722.0,68721.0,0.026]
[1722115077156,0.0504509,68722.0,68721.0,0.026]
[1722115077374,0.20158919,68722.0,68721.0,0.028]
[1722115078033,0.20158919,68722.0,68721.0,0.016]
[1722115078034,0.20158926,68722.0,68721.0,0.016]
[1722115078249,0.21093576,68722.0,68721.0,0.016]
[1722115078459,0.21093576,68722.0,68721.0,0.011]
[1722115078460,0.21193576,68722.0,68721.0,0.011]
[1722115078665,0.21038184,68722.0,68721.0,0.011]
[1722115078878,0.21093601,68722.0,68721.0,0.011]
[1722115079293,0.00188416,68719.0,68718.0,0.01]
[1722115079531,0.0055229,68719.0,68718.0,0.01]
[1722115079963,0.0015542,68721.0,68718.0,0.01]
[1722115080195,0.05233506,68722.0,68721.0,0.014]
[1722115080421,0.05233506,68722.0,68719.0,0.116415]
[1722115080631,0.05233506,68722.0,68718.0,0.01]
[1722115080846,0.0504509,68722.0,68721.0,0.116412]
[1722115081112,0.0504509,68722.0,68721.0,0.582062]
[1722115081309,0.0504509,68722.0,68718.0,0.01]
[1722115081527,0.0504509,68722.0,68721.0,0.349237]
[1722115081735,0.0504509,68722.0,68718.0,0.01]
[1722115081943,0.00188416,68720.0,68718.0,0.01]
[1722115082161,0.0652,68719.0,68718.0,0.01]
[1722115082376,0.1317509,68722.0,68718.0,0.01]
[1722115082377,0.0504509,68722.0,68721.0,0.349237]
[1722115082585,0.0504509,68722.0,68721.0,0.828887]
[1722115082803,0.0504509,68722.0,68721.0,1.12712784]
[1722115083008,0.0652,68755.0,68734.0,0.00011584]
[1722115083009,0.00363653,68754.0,68734.0,0.00011584]
[1722115083221,0.45077872,68748.0,68738.0,0.232767]
[1722115083435,0.02283112,68750.0,68742.0,0.07512979]
[1722115083698,0.02283112,68750.0,68749.0,0.349095]
[1722115083907,0.00188416,68767.0,68749.0,0.2329]
[1722115084131,0.00188416,68767.0,68751.0,0.07512979]
[1722115084372,0.0652,68773.0,68750.0,0.00302289]
[1722115084590,0.07512979,68801.0,68781.0,0.116311]
[1722115084591,0.01520957,68782.0,68781.0,0.116311]
[1722115084810,0.53207872,68788.0,68781.0,0.116311]
[1722115084811,0.45077872,68788.0,68781.0,0.116311]
[1722115085026,0.45077872,68787.0,68772.0,0.0793]
[1722115085249,0.00188416,68791.0,68766.0,0.0655]
[1722115085459,0.00188416,68791.0,68753.0,0.07512979]
[1722115085460,0.19146179,68769.0,68750.0,0.0577891]
[1722115085668,0.07512979,68752.0,68742.0,0.45077872]
[1722115085875,0.0652,68751.0,68749.0,0.014]
[1722115086290,0.0015542,68750.0,68738.0,0.232766]
[1722115086498,0.0015542,68750.0,68734.0,0.00688272]
[1722115086728,0.0015542,68750.0,68719.0,0.45077872]
[1722115086729,0.00188416,68734.0,68720.0,0.45077872]
[1722115086930,0.00363653,68749.0,68720.0,0.45077872]
[1722115086931,0.0652,68738.0,68720.0,0.45761943]
[1722115087140,0.0036373,68737.0,68717.0,0.12335726]
[1722115087348,0.0015542,68736.0,68717.0,0.05785726]
[1722115087562,0.00188416,68733.0,68717.0,0.05785726]
[1722115087786,0.00519229,68732.0,68717.0,0.05785726]
[1722115088008,0.02439365,68732.0,68731.0,0.232791]
[1722115088209,0.0015542,68732.0,68727.0,1.0]
[1722115088425,0.00188416,68741.0,68727.0,1.0]
[1722115088426,0.0015542,68740.0,68727.0,1.0]
[1722115088631,0.00188416,68741.0,68727.0,1.232804]
[1722115088839,0.00188416,68741.0,68727.0,1.0]
[1722115089066,0.00188416,68741.0,68734.0,0.014]
[1722115089273,0.00188416,68741.0,68727.0,1.0]
[1722115089274,0.00363726,68740.0,68727.0,1.0]
[1722115089479,0.0015542,68739.0,68727.0,1.0]
[1722115089692,0.0015542,68739.0,68738.0,0.34915]
[1722115089903,0.06708416,68747.0,68729.0,0.07512979]
[1722115090120,0.08178416,68751.0,68743.0,0.232749]
[1722115090336,0.0618,68754.0,68744.0,0.07512979]
[1722115090536,0.0799,68760.0,68754.0,0.116356]
[1722115090537,0.00188416,68758.0,68754.0,0.116356]
[1722115090743,0.0799,68760.0,68747.0,0.232736]
[1722115090953,0.0799,68760.0,68749.0,0.116364]
[1722115091159,0.0799,68760.0,68741.0,0.061]
[1722115091425,0.0799,68760.0,68753.0,0.116358]
[1722115091637,0.0799,68760.0,68754.0,0.116356]
[1722115091638,0.02282925,68758.0,68754.0,0.116356]
[1722115091854,0.02282925,68758.0,68741.0,0.061]
[1722115091855,0.02282925,68758.0,68757.0,0.116351]
[1722115092067,0.02282925,68758.0,68741.0,0.061]
[1722115092275,0.00188416,68754.0,68743.0,0.014]
[1722115092500,0.00552076,68754.0,68743.0,0.014]
[1722115092708,0.00188416,68750.0,68722.0,0.45077872]
[1722115092923,0.00519135,68749.0,68730.0,0.116396]
[1722115093132,0.00188416,68742.0,68725.0,0.239578]
[1722115093353,0.0015542,68741.0,68738.0,0.116383]
[1722115093571,0.0015542,68741.0,68738.0,0.116382]
[1722115093825,0.0015542,68741.0,68726.0,0.23292284]
[1722115094036,0.1417,68753.0,68729.0,0.116398]
[1722115094037,0.00188416,68742.0,68729.0,0.116398]
[1722115094248,0.00188416,68742.0,68723.0,0.00011584]
[1722115094457,0.00363735,68741.0,68723.0,0.00011584]
[1722115094674,0.00363735,68741.0,68723.0,0.232816]
[1722115094675,0.00188416,68736.0,68723.0,0.232816]
[1722115094883,0.00188416,68736.0,68727.0,1.116401]
[1722115095326,0.00188416,68736.0,68730.0,0.014]
[1722115095743,0.02283679,68734.0,68727.0,1.116402]
[1722115095950,0.00188416,68736.0,68729.0,0.116399]
[1722115096169,0.00188416,68730.0,68727.0,1.0]
[1722115096643,0.00188416,68732.0,68727.0,1.0]
[1722115097054,0.0015542,68731.0,68727.0,1.0]
[1722115097254,0.0015542,68731.0,68729.0,0.014]
[1722115098119,0.00519203,68731.0,68729.0,0.014]
[1722115098331,0.00188416,68730.0,68727.0,1.0]
[1722115098542,0.00519203,68731.0,68727.0,1.0]
[1722115098543,0.00188416,68728.0,68727.0,1.0]
[1722115098769,0.00188416,68728.0,68718.0,0.01]
[1722115098770,0.081,68720.0,68718.0,0.01]
[1722115099018,0.00519341,68719.0,68711.0,0.002]
[1722115099244,0.00188416,68715.0,68711.0,0.002]
[1722115099419,0.00552333,68715.0,68711.0,0.002]
[1722115099669,0.00552333,68715.0,68690.0,0.44847145]
[1722115099670,0.00188416,68702.0,68690.0,0.37334166]
[1722115099880,0.26152816,68702.0,68694.0,0.009009]
[1722115100095,0.14508416,68696.0,68690.0,0.37334166]
[1722115100327,0.1487241,68696.0,68690.0,0.37334166]
[1722115100552,0.1432,68696.0,68690.0,0.37334166]
[1722115102083,0.1432,68696.0,68688.0,0.009009]
[1722115102295,0.1432,68696.0,68680.0,0.0242896]
[1722115102502,0.1432,68696.0,68683.0,0.011009]
[1722115102742,0.14508416,68696.0,68683.0,0.011009]
[1722115102961,0.38917922,68696.0,68695.0,0.016009]
[1722115103182,0.081,68695.0,68680.0,0.0242896]
[1722115103410,0.081,68695.0,68663.0,0.45077872]
[1722115103411,0.00188416,68674.0,68663.0,0.45077872]
[1722115103830,0.00188416,68674.0,68653.0,0.00697114]
[1722115103831,0.0015542,68673.0,68667.0,0.02429]
[1722115104052,0.00364107,68672.0,68659.0,0.116517]
[1722115104262,0.00364107,68672.0,68652.0,0.009009]
[1722115104481,0.00552523,68672.0,68663.0,0.005837]
[1722115104691,0.00552561,68672.0,68663.0,0.005837]
[1722115104896,0.00552561,68672.0,68658.0,0.233036]
[1722115104897,0.00188416,68672.0,68658.0,0.233036]
[1722115105098,0.00188416,68672.0,68661.0,0.118513]
[1722115105317,0.00188416,68672.0,68664.0,0.005837]
[1722115105524,0.00188416,68672.0,68671.0,0.006]
[1722115105525,0.00288416,68672.0,68671.0,0.006]
[1722115105726,0.00652552,68672.0,68671.0,0.002]
[1722115106138,0.00752552,68672.0,68671.0,0.006]
[1722115106862,0.00388416,68672.0,68671.0,0.006]
[1722115107718,0.00552554,68672.0,68671.0,0.002]
[1722115108140,0.02938635,68672.0,68671.0,0.006]
[1722115108354,0.19558639,68672.0,68671.0,0.002]
[1722115108563,0.79833796,68672.0,68671.0,0.006]
[1722115108766,0.31686096,68672.0,68671.0,0.006]
[1722115109182,0.41049515,68672.0,68671.0,0.006]
[1722115109391,0.00188416,68658.0,68645.0,0.002938]
[1722115109593,0.0015542,68657.0,68653.0,0.009009]
[1722115109799,0.0015542,68657.0,68656.0,0.116522]
[1722115110211,0.1432,68672.0,68654.0,0.297049]
[1722115110212,0.0015542,68671.0,68654.0,0.297049]
[1722115110434,0.14508416,68672.0,68655.0,0.07512979]
[1722115110435,0.1432,68672.0,68655.0,0.07512979]
[1722115110648,0.00188416,68674.0,68656.0,0.00011584]
[1722115110870,0.00188416,68674.0,68655.0,0.07701194]
[1722115110871,0.00188416,68676.0,68657.0,0.00291246]
[1722115111087,0.00188416,68683.0,68674.0,0.116491]
[1722115111293,0.00713279,68684.0,68676.0,0.116487]
[1722115111498,0.00188416,68685.0,68666.0,0.00011584]
[1722115111731,0.081,68690.0,68655.0,0.07512979]
[1722115111732,0.081,68690.0,68668.0,0.00011584]
[1722115111946,0.00552423,68691.0,68684.0,0.115474]
[1722115112149,0.00188416,68691.0,68679.0,0.232967]
[1722115112353,0.00188416,68688.0,68678.0,0.116484]
[1722115112556,0.00188416,68688.0,68676.0,0.064]
[1722115112557,0.00188416,68688.0,68677.0,0.232973]
[1722115112763,0.00188416,68690.0,68680.0,0.232963]
[1722115112992,0.00364007,68695.0,68676.0,0.064]
[1722115112993,0.00188416,68686.0,68676.0,0.064]
[1722115113214,0.00188416,68686.0,68685.0,0.115473]
[1722115113417,0.00188416,68686.0,68676.0,0.300977]
[1722115113418,0.00887433,68696.0,68676.0,0.06411584]
[1722115113621,0.00887433,68696.0,68690.0,0.232928]
[1722115113830,0.00699017,68696.0,68691.0,0.232924]
[1722115114089,0.00699017,68696.0,68647.0,0.15789742]
[1722115114090,0.07512979,68677.0,68647.0,0.15789742]
[1722115114364,0.07512979,68677.0,68646.0,0.064]
[1722115114365,0.07512979,68659.0,68656.0,0.45077872]
[1722115114666,0.00188416,68654.0,68645.0,0.002938]
[1722115114860,0.0055262,68654.0,68645.0,0.002938]
[1722115115099,0.1472262,68654.0,68645.0,0.002938]
[1722115115322,0.00188416,68650.0,68645.0,0.002938]
[1722115115535,0.00188416,68646.0,68645.0,0.002938]
[1722115115743,0.00188416,68646.0,68626.0,0.00902]
[1722115115744,0.00188416,68636.0,68626.0,0.00902]
[1722115115923,0.00364338,68646.0,68626.0,0.00902]
[1722115115924,0.0015542,68645.0,68626.0,0.00902]
[1722115116180,0.14358416,68632.0,68626.0,0.00902]
[1722115116390,0.38679089,68632.0,68629.0,0.00902]
[1722115116589,0.38679089,68632.0,68626.0,0.00902]
[1722115116590,0.27022789,68632.0,68626.0,0.00902]
[1722115116808,0.27010071,68632.0,68626.0,0.00902]
[1722115117261,0.26821655,68632.0,68626.0,0.00902]
[1722115117515,0.27010071,68632.0,68626.0,0.00902]
[1722115118189,0.19214144,68632.0,68626.0,0.00902]
[1722115118414,0.19214144,68632.0,68631.0,0.009]
[1722115118644,0.20771185,68632.0,68631.0,0.009]
[1722115118852,0.68040185,68632.0,68631.0,0.009]
[1722115119080,0.68040185,68632.0,68631.0,0.002]
[1722115119081,0.43206528,68632.0,68631.0,0.002]
[1722115119299,0.43206528,68632.0,68556.0,0.00023986]
[1722115119300,0.3533,68584.0,68556.0,0.00023986]
[1722115119542,0.0015542,68583.0,68556.0,0.00023986]
[1722115119776,0.00364708,68582.0,68563.0,0.00902]
[1722115119980,0.10188416,68592.0,68563.0,0.00902]
[1722115119981,0.0015542,68591.0,68565.0,0.063]
[1722115120200,0.0015542,68591.0,68590.0,0.349905]
[1722115120405,0.0015542,68591.0,68566.0,0.00291593]
[1722115120406,0.0015542,68600.0,68582.0,0.0792]
[1722115120624,0.00188416,68590.0,68582.0,0.0792]
[1722115120845,0.00188416,68591.0,68590.0,0.116635]
[1722115121054,0.00519884,68608.0,68583.0,0.00959959]
[1722115121055,0.00188416,68601.0,68583.0,0.00959959]
[1722115121263,0.0015542,68600.0,68584.0,0.00291581]
[1722115121507,0.0015542,68600.0,68584.0,0.00959076]
[1722115122253,0.00364477,68599.0,68584.0,0.00959076]
[1722115122479,0.00188416,68586.0,68585.0,0.00958193]
[1722115122935,0.00188416,68586.0,68563.0,0.00902]
[1722115122936,0.00188416,68583.0,68563.0,0.00902]
[1722115123171,0.00520001,68582.0,68563.0,0.00902]
[1722115123407,0.00520001,68582.0,68559.0,0.116687]
[1722115123627,0.00520001,68582.0,68553.0,0.00686532]
[1722115123895,0.00188416,68556.0,68552.0,0.05846]
[1722115124114,0.00188416,68558.0,68551.0,0.002]
[1722115125059,0.00188416,68563.0,68551.0,0.002]
[1722115125283,0.00188416,68563.0,68552.0,0.233399]
[1722115125510,0.00188416,68563.0,68551.0,0.002]
[1722115125769,0.0015542,68562.0,68553.0,0.116697]
[1722115125979,0.0015542,68562.0,68561.0,0.350052]
[1722115126184,0.00188416,68579.0,68554.0,0.00011584]
[1722115126398,0.00188416,68579.0,68561.0,0.233367]
[1722115126627,0.00364576,68601.0,68551.0,0.002]
[1722115126628,0.00188416,68591.0,68564.0,0.00011584]
[1722115126856,0.00700403,68596.0,68571.0,0.07512979]
[1722115127084,0.00188416,68601.0,68576.0,0.233316]
[1722115127288,0.0622,68603.0,68580.0,0.00011584]
[1722115127509,0.00188416,68605.0,68581.0,0.063]
[1722115127724,0.00188416,68605.0,68593.0,0.116628]
[1722115127932,0.0795,68609.0,68582.0,0.00303136]
[1722115127933,0.08138416,68609.0,68594.0,0.00291551]
[1722115128137,0.00188416,68615.0,68595.0,0.00291506]
[1722115128364,0.53027872,68624.0,68596.0,0.00011584]
[1722115128365,0.00188416,68619.0,68596.0,0.00011584]
[1722115128567,0.00188416,68624.0,68613.0,0.116595]
[1722115128776,0.00188416,68624.0,68611.0,0.233197]
[1722115128996,0.00188416,68624.0,68597.0,0.07384663]
[1722115128997,0.00188416,68624.0,68597.0,0.07093191]
[1722115129206,0.00188416,68624.0,68598.0,0.00291472]
[1722115129428,0.00188416,68624.0,68612.0,0.233193]
[1722115129669,0.00188416,68624.0,68598.0,0.00291472]
[1722115129670,0.00188416,68624.0,68613.0,0.0233193]
[1722115129894,0.00188416,68624.0,68613.0,0.116595]
[1722115130103,0.00188416,68625.0,68598.0,0.00291472]
[1722115130322,0.00188416,68631.0,68608.0,0.0783]
[1722115130535,0.0795,68638.0,68613.0,0.07512979]
[1722115130536,0.00188416,68638.0,68613.0,0.07512979]
[1722115130750,0.00188416,68641.0,68619.0,0.00011584]
[1722115130987,0.0641,68643.0,68628.0,0.233139]
[1722115131230,0.002,68649.0,68638.0,0.34966]
[1722115131429,0.002,68649.0,68638.0,0.407938]
[1722115131637,0.002,68649.0,68638.0,0.34966]
[1722115132063,0.002,68649.0,68636.0,0.00011584]
[1722115132064,0.002,68649.0,68639.0,0.00011584]
[1722115132267,0.002,68649.0,68642.0,0.23309]
[1722115132478,0.002,68649.0,68648.0,0.116536]
[1722115132679,0.002,68649.0,68648.0,0.349609]
[1722115132888,0.002,68649.0,68648.0,0.116536]
[1722115133339,0.002,68649.0,68640.0,0.08356805]
[1722115133547,0.15452979,68648.0,68623.0,0.233156]
[1722115133793,0.15452979,68648.0,68630.0,0.45077872]
[1722115133794,0.0015542,68647.0,68630.0,0.45077872]
[1722115134002,0.002,68649.0,68627.0,0.07512979]
[1722115134003,0.002,68649.0,68648.0,0.116536]
[1722115134211,0.002,68649.0,68648.0,0.1281896]
[1722115134418,0.002,68649.0,68648.0,0.13110193]
[1722115134596,0.002,68649.0,68648.0,0.59724793]
[1722115135257,0.002,68649.0,68648.0,0.0106536]
[1722115135468,0.002,68649.0,68643.0,0.116544]
[1722115135676,0.002,68649.0,68638.0,0.233105]
[1722115135883,0.002,68649.0,68631.0,0.14031584]
[1722115135884,0.002,68649.0,68633.0,0.00011584]
[1722115136089,0.002,68649.0,68639.0,0.233101]
[1722115136295,0.00188416,68647.0,68640.0,0.0233101]
[1722115136506,0.002,68649.0,68631.0,0.14705371]
[1722115136507,0.0015542,68646.0,68639.0,0.11655]
[1722115136709,0.0015542,68646.0,68637.0,0.116554]
[1722115136923,0.0015542,68646.0,68638.0,0.116552]
[1722115137131,0.00188416,68647.0,68633.0,0.233122]
[1722115137346,0.00188416,68630.0,68603.0,0.1533]
[1722115137559,0.00188416,68630.0,68600.0,0.0628]
[1722115137560,0.00188416,68624.0,68612.0,0.233193]
[1722115137780,0.00188416,68624.0,68608.0,0.233208]
[1722115137989,0.00188416,68619.0,68608.0,0.116603]
[1722115138197,0.0015542,68623.0,68578.0,0.77512979]
[1722115138198,0.07512979,68616.0,68578.0,0.77512979]
[1722115138458,0.07877361,68616.0,68591.0,0.233263]
[1722115138687,0.00188416,68604.0,68592.0,0.0466533]
[1722115138892,0.00188416,68604.0,68584.0,0.00698586]
[1722115138893,0.00364421,68603.0,68584.0,0.00698586]
[1722115139103,0.00364421,68603.0,68574.0,0.01426]
[1722115139104,0.00188416,68589.0,68574.0,0.01426]
[1722115139318,0.00188416,68589.0,68585.0,0.00958193]
[1722115139530,0.00188416,68589.0,68587.0,0.116639]
[1722115139737,0.00188416,68589.0,68587.0,0.1516319]
[1722115139952,0.00188416,68598.0,68588.0,0.00955544]
[1722115140200,0.00188416,68589.0,68588.0,0.00955544]
[1722115140619,0.1408,68597.0,68568.0,0.0628]
[1722115140620,0.00188416,68590.0,68568.0,0.0628]
[1722115140826,0.00188416,68589.0,68588.0,0.00955544]
[1722115141053,0.00188416,68583.0,68569.0,0.06685085]
[1722115141264,0.00188416,68583.0,68560.0,0.23337]
[1722115141483,0.00188416,68583.0,68545.0,0.7305616]
[1722115141484,0.00188416,68575.0,68546.0,0.51357872]
[1722115141686,0.07512979,68592.0,68546.0,0.51357872]
[1722115141687,0.00188416,68571.0,68560.0,0.233371]
[1722115141892,0.00188416,68578.0,68562.0,0.0235371]
[1722115142098,0.00188416,68582.0,68563.0,0.00291624]
[1722115142324,0.00188416,68571.0,68562.0,0.233364]
[1722115142531,0.1408,68572.0,68561.0,0.002]
[1722115142944,0.1408,68572.0,68564.0,0.116677]
[1722115143154,0.1408,68572.0,68561.0,0.002]
[1722115143376,0.07512979,68566.0,68561.0,0.002]
[1722115143576,0.00188416,68562.0,68561.0,0.002]
[1722115146001,0.00188416,68568.0,68561.0,0.002]
[1722115146426,0.00188416,68574.0,68563.0,0.07512979]
[1722115146624,0.00188416,68574.0,68564.0,0.00771298]
[1722115146847,0.00188416,68586.0,68564.0,0.01268401]
[1722115147078,0.00364574,68593.0,68565.0,0.07512979]
[1722115147079,0.00188416,68584.0,68565.0,0.07512979]
[1722115147283,0.00364515,68595.0,68565.0,0.07512979]
[1722115147284,0.00188416,68601.0,68576.0,0.0798]
[1722115147459,0.45077872,68597.0,68577.0,0.06571557]